fUSD/lending_fUSD_20260202
["ID","MTS","AMOUNT","RATE_DAILY","PERIOD"]
[404314698,1770055198114,-500.0,0.00043287,120]
[404314699,1770055198153,-500.0,0.00043287,120]
[404314700,1770055198196,-500.0,0.00043287,120]
[404314701,1770055198239,-500.0,0.00043287,120]
[404314702,1770055198277,-500.0,0.00043287,120]
[404314703,1770055198316,-500.0,0.00043287,120]
[404314704,1770055198352,-503.93862391,0.00043287,120]
[404314705,1770055198394,-500.0,0.00043287,120]
[404314706,1770055198432,-500.0,0.00043287,120]
[404314707,1770055198470,-508.55035951,0.00043287,120]
[404314708,1770055198508,-500.0,0.00043287,120]
[404314709,1770055198550,-505.53013093,0.00043287,120]
[404314710,1770055198589,-549.4435971,0.00043287,120]
[404314711,1770055198630,-533.01224627,0.00043287,120]
[404314712,1770055198671,-535.51176825,0.00043287,120]
[404314713,1770055198707,-509.99575872,0.00043287,120]
[404314714,1770055198743,-438.12031118,0.00043287,120]
[404314715,1770055198779,-513.56842531,0.00043287,120]
[404314716,1770055198817,-500.0,0.00043287,120]
[404314717,1770055198852,-500.0,0.00043287,120]
[404314718,1770055199018,-500.0,0.00043287,120]
[404314719,1770055199092,-500.0,0.00043287,120]
[404314720,1770055199138,-500.0,0.00043287,120]
[404314721,1770055199180,-526.2273831,0.00043287,120]
[404314722,1770055199218,-514.92895268,0.00043287,120]
[404314723,1770055199255,-500.0,0.00043287,120]
[404314724,1770055199293,-500.0,0.00043287,120]
[404314725,1770055199332,-500.0,0.00043287,120]
[404314726,1770055199372,-500.0,0.00043287,120]
[404314727,1770055199416,-500.0,0.00043287,120]
[404314728,1770055199459,-500.0,0.00043287,120]
[404314729,1770055199503,-520.37100445,0.00043287,120]
[404314730,1770055199549,-500.0,0.00043287,120]
[404314731,1770055199591,-293.97793932,0.00043287,120]
[404314732,1770055199632,-500.0,0.00043287,120]
[404314733,1770055199672,-500.0,0.00043287,120]
[404314734,1770055199712,-500.0,0.00043287,120]
[404314735,1770055199750,-500.0,0.00043287,120]
[404314736,1770055199790,-500.0,0.00043287,120]
[404314737,1770055199829,-522.9016768,0.00043287,120]
[404314738,1770055199867,-525.2546198,0.00043287,120]
[404314739,1770055199906,-500.0,0.00043287,120]
[404314740,1770055199945,-500.0,0.00043287,120]
[404314741,1770055199984,-501.66473796,0.00043287,120]
[404314742,1770055200026,-514.90139044,0.00043287,120]
[404314743,1770055200068,-500.0,0.00043287,120]
[404314744,1770055200112,-500.0,0.00043287,120]
[404314745,1770055200159,-500.0,0.00043287,120]
[404314746,1770055200207,-500.0,0.00043287,120]
[404314748,1770055200254,-500.0,0.00043287,120]
[404314749,1770055200300,-500.0,0.00043287,120]
[404314750,1770055200344,-500.0,0.00043287,120]
[404314751,1770055200389,-500.0,0.00043287,120]
[404314752,1770055200434,-500.0,0.00043287,120]
[404314753,1770055200481,-518.82461998,0.00043287,120]
[404314754,1770055200526,-500.0,0.00043287,120]
[404314755,1770055200581,-500.0,0.00043287,120]
[404314756,1770055200633,-500.0,0.00043287,120]
[404314757,1770055200685,-500.0,0.00043287,120]
[404314758,1770055200729,-500.0,0.00043287,120]
[404314759,1770055200777,-500.0,0.00043287,120]
[404314760,1770055200823,-500.0,0.00043287,120]
[404314761,1770055200868,-500.0,0.00043287,120]
[404314762,1770055200913,-502.8455926,0.00043287,120]
[404314763,1770055200958,-500.0,0.00043287,120]
[404314764,1770055201004,-545.40511837,0.00043287,120]
[404314765,1770055201049,-500.0,0.00043287,120]
[404314766,1770055201094,-500.0,0.00043287,120]
[404314767,1770055201139,-500.0,0.00043287,120]
[404314768,1770055201183,-449.83120392,0.00043287,120]
[404314769,1770055201230,-555.83236653,0.00043287,120]
[404314770,1770055201273,-500.0,0.00043287,16]
[404314771,1770055201317,-502.59740814,0.00043287,16]
[404314772,1770055201360,-500.0,0.00043287,120]
[404314773,1770055201403,-503.15999295,0.00043287,120]
[404314774,1770055201447,-506.86664184,0.00043287,120]
[404314775,1770055201494,-521.3253132,0.00043287,120]
[404314776,1770055201540,-500.0,0.00043287,120]
[404314777,1770055201586,-500.0,0.00043287,120]
[404314778,1770055201631,-361.69219166,0.00043287,120]
[404314780,1770055201677,-537.26411691,0.00043287,120]
[404314781,1770055201721,-524.58972472,0.00043287,120]
[404314783,1770055201765,-534.92568052,0.00043287,120]
[404314784,1770055201809,-500.0,0.00043287,120]
[404314785,1770055201852,-500.0,0.00043287,120]
[404314786,1770055201895,-500.0,0.00043287,120]
[404314787,1770055201940,-500.0,0.00043287,120]
[404314788,1770055201987,-503.02415673,0.00043287,120]
[404314789,1770055202034,-542.00168968,0.00043287,120]
[404314790,1770055202081,-500.0,0.00043287,120]
[404314791,1770055202127,-500.0,0.00043287,120]
[404314792,1770055202174,-358.99501478,0.00043287,120]
[404314793,1770055202218,-513.63825658,0.00043287,120]
[404314794,1770055202261,-500.0,0.00043287,120]
[404314795,1770055202306,-273.25425158,0.00043287,120]
[404314796,1770055202351,-500.0,0.00043287,120]
[404314797,1770055202397,-500.0,0.00043287,120]
[404314798,1770055202442,-503.11134626,0.00043287,120]
[404314799,1770055202488,-500.0,0.00043287,30]
[404314800,1770055202533,-500.0,0.00043287,120]
[404314801,1770055202577,-314.46209602,0.00043287,30]
[404314802,1770055202624,-500.0,0.00043287,120]
[404314803,1770055202671,-500.0,0.00043287,120]
[404314804,1770055202718,-500.0,0.00043287,120]
[404314805,1770055202763,-500.0,0.00043287,120]
[404314806,1770055202806,-500.0,0.00043287,120]
[404314807,1770055202848,-500.0,0.00043287,120]
[404314808,1770055202890,-500.0,0.00043287,120]
[404314809,1770055202930,-500.0,0.00043287,120]
[404314810,1770055202974,-500.0,0.00043287,120]
[404314811,1770055203024,-500.0,0.00043287,120]
[404314812,1770055203080,-500.0,0.00043287,120]
[404314813,1770055203131,-500.0,0.00043287,120]
[404314814,1770055203185,-500.0,0.00043287,120]
[404314815,1770055203235,-582.31280487,0.00043287,120]
[404314816,1770055203286,-509.57679663,0.00043287,120]
[404314817,1770055203519,-520.73294064,0.00043287,120]
[404314818,1770055203571,-515.54137402,0.00043287,120]
[404314819,1770055203622,-524.4475481,0.00043287,120]
[404314820,1770055203670,-514.43969025,0.00043287,120]
[404314821,1770055203721,-500.0,0.00043287,120]
[404314822,1770055203769,-500.0,0.00043287,120]
[404314823,1770055203818,-500.0,0.00043287,120]
[404314824,1770055203866,-500.0,0.00043287,120]
[404314825,1770055203917,-500.0,0.00043287,120]
[404314826,1770055203966,-500.0,0.00043287,120]
[404314827,1770055204014,-500.0,0.00043287,120]
[404314828,1770055204063,-500.0,0.00043287,120]
[404314829,1770055204113,-500.0,0.00043287,120]
[404314830,1770055204163,-500.0,0.00043287,120]
[404314831,1770055204215,-500.0,0.00043287,120]
[404314832,1770055204265,-500.0,0.00043287,120]
[404314833,1770055204316,-500.0,0.00043287,120]
[404314834,1770055204370,-500.0,0.00043287,120]
[404314835,1770055204422,-525.34694238,0.00043287,120]
[404314836,1770055204471,-500.0,0.00043287,120]
[404314837,1770055204521,-500.0,0.00043287,120]
[404314838,1770055204572,-500.0,0.00043287,120]
[404314839,1770055204622,-505.49103514,0.00043287,120]
[404314840,1770055204677,-500.0,0.00043287,120]
[404314841,1770055204727,-514.8817743,0.00043287,120]
[404314842,1770055204777,-500.0,0.00043287,120]
[404314843,1770055204828,-564.72446784,0.00043287,120]
[404314844,1770055204879,-500.0,0.00043287,120]
[404314845,1770055204930,-500.0,0.00043287,120]
[404314846,1770055204979,-507.52682363,0.00043287,120]
[404314847,1770055205029,-507.46279797,0.00043287,120]
[404314848,1770055205079,-500.0,0.00043287,120]
[404314849,1770055205130,-533.37352279,0.00043287,120]
[404314850,1770055205180,-500.0,0.00043287,120]
[404314851,1770055205221,-503.35026758,0.00043287,120]
[404314852,1770055205268,-560.46732756,0.00043287,120]
[404314853,1770055205315,-529.31585056,0.00043287,120]
[404314854,1770055205370,-575.91130924,0.00043287,120]
[404314855,1770055205419,-500.0,0.00043287,120]
[404314856,1770055205470,-429.44254062,0.00043287,120]
[404314857,1770055205522,-500.0,0.00043287,120]
[404314858,1770055205573,-500.0,0.00043287,120]
[404314859,1770055205622,-516.34330696,0.00043287,120]
[404314860,1770055205673,-584.99689828,0.00043287,120]
[404314861,1770055205724,-503.52421064,0.00043287,120]
[404314862,1770055205773,-500.0,0.00043287,120]
[404314863,1770055205822,-503.8664272,0.00043287,120]
[404314864,1770055205870,-568.74193341,0.00043287,120]
[404314865,1770055205920,-500.0,0.00043287,120]
[404314866,1770055205967,-500.0,0.00043287,120]
[404314867,1770055206014,-503.23829274,0.00043287,120]
[404314868,1770055206062,-505.65366181,0.00043287,12]
[404314869,1770055206110,-500.0,0.00043287,120]
[404314870,1770055206159,-500.0,0.00043287,120]
[404314871,1770055206214,-500.0,0.00043287,120]
[404314872,1770055206264,-503.70285671,0.00043287,120]
[404314873,1770055206309,-500.0,0.00043287,120]
[404314874,1770055206358,-500.0,0.00043287,120]
[404314875,1770055206408,-500.0,0.00043287,120]
[404314876,1770055206458,-500.0,0.00043287,120]
[404314877,1770055206508,-511.734274,0.00043287,120]
[404314878,1770055206561,-500.0,0.00043287,120]
[404314879,1770055206612,-500.0,0.00043287,120]
[404314880,1770055206664,-500.0,0.00043287,120]
[404314881,1770055206716,-500.0,0.00043287,120]
[404314882,1770055206766,-500.0,0.00043287,120]
[404314883,1770055206817,-500.0,0.00043287,120]
[404314884,1770055206867,-500.0,0.00043287,120]
[404314885,1770055206920,-500.0,0.00043287,120]
[404314886,1770055206971,-500.0,0.00043287,120]
[404314887,1770055207028,-500.0,0.00043287,120]
[404314888,1770055207080,-185.74720416,0.00043287,120]
[404314889,1770055207134,-503.81827173,0.00043287,120]
[404314890,1770055207190,-524.31181188,0.00043287,120]
[404314891,1770055207242,-519.16493842,0.00043287,120]
[404314892,1770055207298,-500.37481524,0.00043287,120]
[404314893,1770055207354,-503.99368645,0.00043287,120]
[404314894,1770055207407,-553.34877497,0.00043287,120]
[404314895,1770055207460,-306.92882712,0.00043287,120]
[404314896,1770055207515,-505.25267616,0.00043287,120]
[404314897,1770055207568,-514.66750371,0.00043287,120]
[404314898,1770055207621,-415.91593437,0.00043287,120]
[404314899,1770055207673,-500.0,0.00043287,120]
[404314900,1770055207726,-633.59293958,0.00043287,120]
[404314901,1770055207778,-298.21631826,0.00043287,120]
[404314902,1770055207834,-511.40815074,0.00043287,120]
[404314903,1770055207890,-502.13416544,0.00043287,120]
[404314904,1770055207945,-612.40738803,0.00043287,120]
[404314905,1770055207999,-621.99833119,0.00043287,120]
[404314906,1770055208053,-500.0,0.00043287,120]
[404314907,1770055208107,-541.71057473,0.00043287,120]
[404314908,1770055208162,-505.36346305,0.00043287,120]
[404314909,1770055208218,-500.0,0.00043287,120]
[404314910,1770055208276,-543.63000319,0.00043287,120]
[404314911,1770055208329,-505.99392591,0.00043287,120]
[404314912,1770055208384,-569.65888288,0.00043287,120]
[404314913,1770055208688,-500.0,0.00043287,120]
[404314914,1770055208742,-477.24894805,0.00043287,120]
[404314915,1770055208795,-538.55355715,0.00043287,120]
[404314916,1770055208848,-500.0,0.00043287,120]
[404314917,1770055208900,-500.0,0.00043287,120]
[404314918,1770055208952,-500.0,0.00043287,120]
[404314919,1770055209006,-278.95027348,0.00043287,120]
[404314920,1770055209060,-616.95411035,0.00043287,120]
[404314921,1770055209115,-573.75551429,0.00043287,120]
[404314922,1770055209169,-505.91948558,0.00043287,120]
[404314923,1770055209221,-508.15254804,0.00043287,120]
[404314924,1770055209274,-500.0,0.00043287,120]
[404314925,1770055209326,-597.53832429,0.00043287,120]
[404314926,1770055209382,-587.54954871,0.00043287,120]
[404314927,1770055209434,-529.04222832,0.00043287,120]
[404314928,1770055209486,-530.26875593,0.00043287,120]
[404314929,1770055209524,-600.02,0.00043287,120]
[404314930,1770055209562,-500.0,0.00043287,120]
[404314931,1770055209598,-500.0,0.00043287,120]
[404314932,1770055209632,-500.0,0.00043287,120]
[404314933,1770055209669,-500.0,0.00043287,120]
[404314934,1770055209706,-500.0,0.00043287,120]
[404314935,1770055209742,-500.0,0.00043287,120]
[404314936,1770055209778,-500.0,0.00043287,120]
[404314937,1770055209815,-500.0,0.00043287,120]
[404314938,1770055209854,-500.48785715,0.00043287,120]
[404314939,1770055209891,-500.0,0.00043287,120]
[404314940,1770055209926,-500.0,0.00043287,120]
[404314941,1770055209968,-500.0,0.00043287,120]
[404314942,1770055210007,-500.0,0.00043287,120]
[404314943,1770055210045,-500.0,0.00043287,120]
[404314944,1770055210083,-500.0,0.00043287,120]
[404314945,1770055210119,-500.0,0.00043287,120]
[404314946,1770055210158,-500.0,0.00043287,120]
[404314947,1770055210194,-516.3151386,0.00043287,120]
[404314948,1770055210232,-203.01,0.00043287,120]
[404314949,1770055210267,-500.0,0.00043287,120]
[404314950,1770055210303,-500.0,0.00043287,120]
[404314951,1770055210338,-464.47509849,0.00043287,120]
[404314952,1770055210374,-500.0,0.00043287,120]
[404314953,1770055210409,-500.0,0.00043287,120]
[404314954,1770055210446,-500.0,0.00043287,120]
[404314955,1770055210482,-500.0,0.00043287,120]
[404314956,1770055210519,-500.0,0.00043287,120]
[404314957,1770055210557,-500.0,0.00043287,120]
[404314958,1770055210593,-302.7871852,0.00043287,120]
[404314959,1770055210629,-500.0,0.00043287,120]
[404314960,1770055210668,-500.0,0.00043287,120]
[404314961,1770055210706,-500.0,0.00043287,120]
[404314962,1770055210743,-500.0,0.00043287,120]
[404314963,1770055210781,-500.0,0.00043287,120]
[404314964,1770055210820,-500.0,0.00043287,120]
[404314965,1770055210857,-461.35339829,0.00043287,120]
[404314966,1770055210895,-500.0,0.00043287,120]
[404314967,1770055210932,-500.0,0.00043287,120]
[404314968,1770055210972,-500.0,0.00043287,120]
[404314969,1770055211011,-500.0,0.00043287,120]
[404314970,1770055211052,-500.0,0.00043287,120]
[404314971,1770055211092,-500.0,0.00043287,120]
[404314972,1770055211131,-500.0,0.00043287,120]
[404314973,1770055211168,-500.0,0.00043287,120]
[404314974,1770055211207,-500.0,0.00043287,120]
[404314975,1770055211245,-500.0,0.00043287,120]
[404314976,1770055211281,-522.43,0.00043287,120]
[404314977,1770055211317,-500.0,0.00043287,120]
[404314978,1770055211355,-500.0,0.00043287,120]
[404314979,1770055211390,-574.28695836,0.00043287,120]
[404314980,1770055211425,-500.0,0.00043287,120]
[404314981,1770055211460,-500.0,0.00043287,120]
[404314982,1770055211494,-500.0,0.00043287,120]
[404314983,1770055211528,-500.0,0.00043287,120]
[404314984,1770055211563,-500.0,0.00043287,120]
[404314985,1770055211596,-512.30784287,0.00043287,120]
[404314986,1770055211630,-516.23004009,0.00043287,120]
[404314987,1770055211665,-500.0,0.00043287,120]
[404314988,1770055211698,-520.06084019,0.00043287,120]
[404314989,1770055211732,-500.0,0.00043287,120]
[404314990,1770055211766,-500.0,0.00043287,120]
[404314991,1770055211799,-292.15764396,0.00043287,120]
[404314992,1770055211833,-507.00647345,0.00043287,120]
[404314993,1770055211867,-599.28028331,0.00043287,120]
[404314994,1770055211901,-641.88821966,0.00043287,120]
[404314995,1770055211936,-548.40775501,0.00043287,120]
[404314996,1770055211971,-500.0,0.00043287,90]
[404314997,1770055212006,-366.81550332,0.00043287,90]
[404314998,1770055212041,-500.0,0.00043287,120]
[404314999,1770055212076,-518.23393848,0.00043287,120]
[404315000,1770055212112,-500.0,0.00043287,120]
[404315001,1770055212149,-583.94225252,0.00043287,120]
[404315002,1770055212186,-500.0,0.00043287,120]
[404315003,1770055212223,-185.5755201,0.00043287,120]
[404315004,1770055212261,-649.93842755,0.00043287,120]
[404315005,1770055212300,-203.75834804,0.00043287,120]
[404315006,1770055212339,-500.0,0.00043287,120]
[404315007,1770055212379,-500.0,0.00043287,120]
[404315008,1770055212578,-500.0,0.00043287,120]
[404315009,1770055212615,-500.0,0.00043287,120]
[404315010,1770055212651,-508.98266602,0.00043287,120]
[404315011,1770055212686,-160.42107796,0.00043287,120]
[404315012,1770055212719,-500.0,0.00043287,120]
[404315013,1770055212760,-500.0,0.00043287,120]
[404315014,1770055212799,-500.0,0.00043287,120]
[404315015,1770055212834,-607.29754884,0.00043287,120]
[404315016,1770055212868,-845.16,0.00043287,120]
[404315017,1770055212902,-845.16,0.00043287,120]
[404315018,1770055212937,-845.16,0.00043287,120]
[404315019,1770055212974,-845.16,0.00043287,120]
[404315020,1770055213012,-845.16,0.00043287,120]
[404315021,1770055213049,-845.16,0.00043287,120]
[404315022,1770055213083,-244.54010959,0.00043287,120]
[404315023,1770055213119,-845.16,0.00043287,120]
[404315024,1770055213156,-845.16,0.00043287,120]
[404315025,1770055213193,-567.67910227,0.00043287,120]
[404315026,1770055213229,-845.16,0.00043287,120]
[404315027,1770055213265,-845.16,0.00043287,120]
[404315028,1770055213302,-845.16,0.00043287,120]
[404315029,1770055213338,-845.16,0.00043287,120]
[404315030,1770055213373,-500.0,0.00043287,120]
[404315031,1770055213411,-845.16,0.00043287,120]
[404315032,1770055213447,-509.21548076,0.00043287,120]
[404315033,1770055213483,-845.16,0.00043287,120]
[404315034,1770055213520,-845.16,0.00043287,120]
[404315035,1770055213555,-845.16,0.00043287,120]
[404315036,1770055213591,-845.16,0.00043287,120]
[404315037,1770055213625,-845.16,0.00043287,120]
[404315038,1770055213660,-517.47957477,0.00043287,120]
[404315039,1770055213694,-845.16,0.00043287,120]
[404315040,1770055213726,-500.0,0.00043287,120]
[404315041,1770055213758,-845.16,0.00043287,120]
[404315042,1770055213790,-528.88695784,0.00043287,120]
[404315043,1770055213825,-845.16,0.00043287,120]
[404315044,1770055213857,-845.16,0.00043287,120]
[404315045,1770055213891,-845.16,0.00043287,120]
[404315046,1770055213927,-845.31867015,0.00043287,120]
[404315047,1770055213961,-501.20251992,0.00043287,120]
[404315048,1770055213999,-500.0,0.00043287,120]
[404315049,1770055214033,-500.0,0.00043287,120]
[404315050,1770055214074,-508.31737321,0.00043287,120]
[404315051,1770055214110,-607.76254993,0.00043287,120]
[404315052,1770055214143,-500.0,0.00043287,120]
[404315053,1770055214179,-500.0,0.00043287,120]
[404315054,1770055214214,-512.82519625,0.00043287,120]
[404315055,1770055214247,-522.14219293,0.00043287,120]
[404315056,1770055214280,-646.37618659,0.00043287,120]
[404315057,1770055214313,-545.03764184,0.00043287,30]
[404315058,1770055214346,-500.0,0.00043287,120]
[404315059,1770055214384,-500.0,0.00043287,120]
[404315060,1770055214422,-529.15942666,0.00043287,120]
[404315061,1770055214460,-570.4272024,0.00043287,120]
[404315062,1770055214496,-500.0,0.00043287,120]
[404315063,1770055214530,-516.8056543,0.00043287,120]
[404315064,1770055214565,-593.89957805,0.00043287,120]
[404315065,1770055214600,-500.0,0.00043287,120]
[404315066,1770055214634,-640.25591222,0.00043287,120]
[404315067,1770055214668,-500.0,0.00043287,120]
[404315068,1770055214701,-459.17292998,0.00043287,120]
[404315069,1770055214734,-527.05712243,0.00043287,120]
[404315070,1770055214769,-174.89047433,0.00043287,120]
[404315071,1770055214805,-158.5947,0.00043287,120]
[404315072,1770055214841,-500.0,0.00043287,120]
[404315073,1770055214875,-535.8403973,0.00043287,120]
[404315074,1770055214910,-525.40066286,0.00043287,120]
[404315075,1770055214946,-158.5947,0.00043287,120]
[404315076,1770055214981,-158.5947,0.00043287,120]
[404315077,1770055215018,-570.41576553,0.00043287,120]
[404315078,1770055215052,-509.5425072,0.00043287,120]
[404315079,1770055215089,-158.5947,0.00043287,120]
[404315080,1770055215125,-572.90520867,0.00043287,120]
[404315081,1770055215164,-500.0,0.00043287,120]
[404315082,1770055215201,-519.45796362,0.00043287,120]
[404315083,1770055215238,-151.0,0.00043287,120]
[404315084,1770055215273,-547.52058078,0.00043287,120]
[404315085,1770055215309,-151.0,0.00043287,120]
[404315086,1770055215346,-630.07867173,0.00043287,120]
[404315087,1770055215382,-419.66186851,0.00043287,120]
[404315088,1770055215418,-500.0,0.00043287,120]
[404315089,1770055215458,-528.37604334,0.00043287,120]
[404315090,1770055215495,-609.21995581,0.00043287,120]
[404315091,1770055215530,-509.93792707,0.00043287,120]
[404315092,1770055215564,-523.25187209,0.00043287,120]
[404315093,1770055215598,-500.0,0.00043287,120]
[404315094,1770055215632,-500.0,0.00043287,120]
[404315095,1770055215666,-624.78402412,0.00043287,120]
[404315096,1770055215701,-500.0,0.00043287,120]
[404315097,1770055215737,-500.0,0.00043287,120]
[404315098,1770055215771,-500.0,0.00043287,120]
[404315099,1770055215807,-500.0,0.00043287,120]
[404315100,1770055215845,-500.0,0.00043287,120]
[404315101,1770055215880,-500.0,0.00043287,120]
[404315102,1770055215916,-500.0,0.00043287,120]
[404315103,1770055216110,-500.0,0.00043287,120]
[404315104,1770055216150,-500.0,0.00043287,120]
[404315105,1770055216189,-500.0,0.00043287,120]
[404315106,1770055216225,-500.0,0.00043287,120]
[404315107,1770055216261,-500.0,0.00043287,120]
[404315108,1770055216296,-500.0,0.00043287,120]
[404315109,1770055216332,-500.0,0.00043287,120]
[404315110,1770055216368,-500.0,0.00043287,120]
[404315111,1770055216406,-540.55951845,0.00043287,120]
[404315112,1770055216446,-151.0,0.00043287,120]
[404315113,1770055216484,-500.0,0.00043287,120]
[404315114,1770055216523,-438.4279463,0.00043287,120]
[404315115,1770055216560,-618.1816886,0.00043287,120]
[404315116,1770055216598,-293.275279,0.00043287,120]
[404315117,1770055216635,-546.74376556,0.00043287,120]
[404315118,1770055216676,-500.0,0.00043287,120]
[404315119,1770055216713,-531.23563918,0.00043287,120]
[404315120,1770055216751,-500.0,0.00043287,120]
[404315121,1770055216787,-588.162351,0.00043287,120]
[404315122,1770055216824,-570.16229913,0.00043287,120]
[404315123,1770055216862,-527.09203172,0.00043287,120]
[404315124,1770055216901,-500.0,0.00043287,20]
[404315125,1770055216937,-611.80179561,0.00043287,120]
[404315126,1770055216974,-500.0,0.00043287,20]
[404315127,1770055217010,-500.0,0.00043287,20]
[404315128,1770055217046,-157.079604,0.00043287,120]
[404315129,1770055217082,-500.0,0.00043287,20]
[404315130,1770055217117,-500.0,0.00043287,20]
[404315131,1770055217153,-500.0,0.00043287,20]
[404315132,1770055217188,-500.0,0.00043287,20]
[404315133,1770055217223,-547.92482539,0.00043287,120]
[404315134,1770055217258,-500.0,0.00043287,20]
[404315135,1770055217292,-157.079604,0.00043287,120]
[404315136,1770055217328,-500.0,0.00043287,20]
[404315137,1770055217364,-183.36107161,0.00043287,20]
[404315138,1770055217399,-157.079604,0.00043287,120]
[404315139,1770055217433,-556.72471813,0.00043287,120]
[404315140,1770055217469,-518.97930469,0.00043287,120]
[404315141,1770055217505,-157.079604,0.00043287,120]
[404315142,1770055217541,-549.22011189,0.00043287,120]
[404315143,1770055217575,-515.91312531,0.00043287,120]
[404315144,1770055217611,-564.52149372,0.00043287,120]
[404315145,1770055217644,-521.21540033,0.00043287,120]
[404315146,1770055217681,-151.0,0.00043287,120]
[404315147,1770055217715,-418.7318566,0.00043287,120]
[404315148,1770055217748,-500.0,0.00043287,120]
[404315149,1770055217784,-500.0,0.00043287,120]
[404315150,1770055217818,-168.69234298,0.00043287,120]
[404315151,1770055217852,-519.52575351,0.00043287,120]
[404315152,1770055217886,-512.03898961,0.00043287,120]
[404315153,1770055217922,-515.2657466,0.00043287,120]
[404315154,1770055217958,-256.669782,0.00043287,120]
[404315155,1770055217993,-523.83149581,0.00043287,120]
[404315156,1770055218029,-550.92664865,0.00043287,120]
[404315157,1770055218064,-256.669782,0.00043287,120]
[404315158,1770055218100,-537.52422473,0.00043287,120]
[404315159,1770055218136,-506.84408967,0.00043287,120]
[404315160,1770055218173,-256.669782,0.00043287,120]
[404315161,1770055218212,-629.52809048,0.00043287,120]
[404315162,1770055218249,-524.20120741,0.00043287,120]
[404315163,1770055218284,-256.669782,0.00043287,120]
[404315164,1770055218319,-529.03099376,0.00043287,120]
[404315165,1770055218353,-452.63240659,0.00043287,120]
[404315166,1770055218385,-519.76860443,0.00043287,120]
[404315167,1770055218417,-500.0,0.00043287,120]
[404315168,1770055218451,-578.89697127,0.00043287,120]
[404315169,1770055218483,-157.56663356,0.00043287,120]
[404315170,1770055218518,-167.94632306,0.00043287,120]
[404315171,1770055218551,-500.0,0.00043287,120]
[404315172,1770055218588,-506.9161262,0.00043287,120]
[404315173,1770055218623,-552.13192949,0.00043287,120]
[404315174,1770055218657,-501.62966351,0.00043287,120]
[404315175,1770055218692,-519.07067986,0.00043287,120]
[404315176,1770055218735,-552.93345907,0.00043287,120]
[404315177,1770055218773,-500.0,0.00043287,120]
[404315178,1770055218811,-536.60270021,0.00043287,120]
[404315179,1770055218847,-526.5013767,0.00043287,120]
[404315180,1770055218882,-500.0,0.00043287,120]
[404315181,1770055218919,-503.17589748,0.00043287,120]
[404315182,1770055218957,-506.20550605,0.00043287,120]
[404315183,1770055218996,-567.51091916,0.00043287,120]
[404315184,1770055219034,-581.64432786,0.00043287,120]
[404315185,1770055219074,-511.27732318,0.00043287,120]
[404315186,1770055219110,-513.63812718,0.00043287,120]
[404315187,1770055219145,-500.0,0.00043287,120]
[404315188,1770055219180,-500.0,0.00043287,120]
[404315189,1770055219216,-500.0,0.00043287,120]
[404315190,1770055219251,-376.87420669,0.00043287,120]
[404315191,1770055219284,-616.42635334,0.00043287,120]
[404315192,1770055219317,-527.67629654,0.00043287,120]
[404315193,1770055219351,-500.0,0.00043287,120]
[404315194,1770055219387,-629.67480326,0.00043287,120]
[404315195,1770055219421,-568.61786627,0.00043287,120]
[404315196,1770055219456,-518.037699,0.00043287,120]
[404315197,1770055219491,-514.8500653,0.00043287,120]
[404315198,1770055219528,-609.31106136,0.00043287,120]
[404315199,1770055219723,-512.55910319,0.00043287,120]
[404315200,1770055219759,-238.62460686,0.00043287,120]